bitfinex-derivatives/quotes_SOLF0:USTF0_20250117
["timestamp","ask_amount","ask_price","bid_price","bid_amount"]
[1737129569441,1.5129,218.6,218.5,13.25264467]
[1737129569643,13.25264467,218.65,218.5,13.25264467]
[1737129570241,4.5732,218.61,218.56,4.5741]
[1737129572043,4.5719,218.67,218.61,4.573]
[1737129572239,13.25264467,218.67,218.53,13.25264467]
[1737129572547,4.5728,218.63,218.57,4.574]
[1737129572847,13.25264467,218.58,218.46,3.84347911]
[1737129573051,17.82644467,218.58,218.52,4.5748]
[1737129573244,13.25264467,218.64,218.5,13.25264467]
[1737129573443,8.48623983,218.61,218.53,8.48623983]
[1737129573747,8.48623983,218.61,218.57,4.5739]
[1737129573948,1.4923,218.68,218.55,8.48623983]
[1737129574144,8.48623983,218.63,218.55,8.48623983]
[1737129575146,8.48623983,218.63,218.6,4.5733]
[1737129577047,1.4923,218.68,218.57,8.48623983]
[1737129577048,8.48623983,218.64,218.57,8.48623983]
[1737129577547,8.48623983,218.65,218.62,4.5728]
[1737129581049,8.48623983,218.63,218.6,4.5732]
[1737129581445,8.48623983,218.61,218.54,8.48623983]
[1737129583053,8.48623983,218.61,218.59,4.5736]
[1737129583246,8.48623983,218.62,218.59,4.5736]
[1737129583445,8.48623983,218.62,218.61,4.5732]
[1737129583649,8.48623983,218.64,218.56,8.48623983]
[1737129584153,8.48623983,218.64,218.61,4.5731]
[1737129585448,8.48623983,218.64,218.62,4.5729]
[1737129585647,1.4923,218.68,218.58,8.48623983]
[1737129585844,8.48623983,218.67,218.6,8.48623983]
[1737129586051,8.48623983,218.67,218.64,4.5724]
[1737129586452,8.48623983,218.67,218.6,8.48623983]
[1737129586453,8.48623983,218.65,218.57,8.48623983]
[1737129586657,8.48623983,218.65,218.62,4.5728]
[1737129587856,8.48623983,218.63,218.6,4.68]
[1737129588348,8.48623983,218.61,218.6,4.68]
[1737129589552,8.48623983,218.63,218.6,4.68]
[1737129590151,8.48623983,218.65,218.6,4.68]
[1737129590856,8.48623983,218.65,218.63,4.5727]
[1737129591254,8.48623983,218.66,218.63,4.5727]
[1737129591655,8.48623983,218.64,218.61,4.573]
[1737129591852,8.48623983,218.62,218.61,4.573]
[1737129594157,8.48623983,218.64,218.6,4.68]
[1737129594360,8.48623983,218.64,218.62,4.5729]
[1737129595757,8.48623983,218.64,218.61,4.5731]
[1737129596457,8.48623983,218.62,218.58,4.68]
[1737129596763,8.48623983,218.62,218.59,4.5734]
[1737129598458,1.4923,218.68,218.64,4.5725]
[1737129598664,9.97853983,218.68,218.59,8.48623983]
[1737129598862,27.95156295,218.79,218.61,8.48623983]
[1737129599062,8.48623983,218.69,218.61,8.48623983]
[1737129599765,8.48623983,218.69,218.66,4.572]
[1737129600065,8.48623983,218.69,218.61,8.48623983]
[1737129600657,4.5821,218.75,218.58,4.68]
[1737129601458,4.5706,218.74,218.67,4.5717]
[1737129602564,18.3421,218.75,218.66,4.5719]
[1737129602565,4.5709,218.72,218.66,4.5719]
[1737129602863,6.79206855,218.74,218.58,4.68]
[1737129603063,13.76,218.73,218.58,4.68]
[1737129604066,13.76,218.74,218.58,4.68]
[1737129604256,18.3307,218.73,218.66,4.5719]
[1737129605162,18.3307,218.73,218.58,4.68]
[1737129605360,18.3307,218.73,218.67,4.5719]
[1737129605962,4.5821,218.75,218.67,4.5719]
[1737129605963,18.3305,218.74,218.67,4.5719]
[1737129606262,13.76,218.74,218.67,4.5719]
[1737129606465,13.76,218.73,218.58,4.68]
[1737129606960,4.5718,218.68,218.53,3.0644]
[1737129607162,13.76,218.73,218.59,4.86]
[1737129607460,13.76,218.73,218.56,4.88]
[1737129607659,13.76,218.73,218.53,3.0644]
[1737129607660,27.94229402,218.73,218.53,3.0644]
[1737129607866,13.76,218.71,218.53,9.4548]
[1737129608165,14.18229402,218.71,218.52,4.88]
[1737129608362,6.3554605,218.7,218.53,4.88]
[1737129608560,6.7839941,218.7,218.58,4.5738]
[1737129608856,4.5722,218.66,218.53,4.88]
[1737129609058,6.7839941,218.7,218.59,4.5734]
[1737129609262,6.7839941,218.73,218.53,4.88]
[1737129609664,4.5821,218.75,218.54,1.4273]
[1737129609865,4.5821,218.75,218.55,1.544]
[1737129610167,4.5821,218.75,218.55,2.9775]
[1737129611566,4.5711,218.71,218.55,2.9775]
[1737129612166,4.5711,218.71,218.64,4.5725]
[1737129612468,4.5821,218.75,218.62,4.88]
[1737129613069,18.3421,218.75,218.62,4.88]
[1737129613769,4.5713,218.71,218.63,4.5726]
[1737129614071,18.3421,218.75,218.62,4.88]
[1737129614269,18.3421,218.75,218.62,9.4529]
[1737129614270,18.331,218.72,218.62,9.4529]
[1737129614469,13.76,218.72,218.62,9.4529]
[1737129614669,13.76,218.72,218.62,4.88]
[1737129614871,4.5718,218.68,218.62,9.4529]
[1737129615373,4.5718,218.68,218.62,4.5729]
[1737129615669,4.5821,218.75,218.55,2.9775]
[1737129615670,4.5715,218.69,218.63,4.5727]
[1737129616473,4.5717,218.68,218.62,4.5729]
[1737129616667,13.76,218.74,218.61,4.88]
[1737129617172,20.5519388,218.74,218.61,4.88]
[1737129617873,6.7919388,218.74,218.61,4.88]
[1737129618069,4.5821,218.75,218.61,4.88]
[1737129618271,9.1524,218.75,218.65,4.5723]
[1737129618473,9.1524,218.75,218.61,4.88]
[1737129618871,9.1524,218.75,218.69,4.5715]
[1737129619278,4.5704,218.74,218.61,4.88]
[1737129620470,4.5704,218.74,218.67,4.5717]
[1737129620975,18.3421,218.75,218.62,4.86]
[1737129621676,18.3421,218.75,218.62,9.4328]
[1737129622176,4.5716,218.69,218.63,4.5727]
[1737129622779,4.5713,218.7,218.64,4.5724]
[1737129622977,18.3421,218.75,218.55,2.9775]
[1737129623473,18.3421,218.75,218.54,4.88]
[1737129623873,13.76,218.73,218.53,4.88]
[1737129624377,4.5728,218.63,218.57,4.574]
[1737129624575,13.76,218.73,218.53,4.88]
[1737129624770,13.76,218.74,218.53,4.88]
[1737129624975,4.5727,218.64,218.56,4.5742]
[1737129625174,4.5727,218.64,218.53,4.88]
[1737129625876,1.4512,218.63,218.53,4.88]
[1737129626079,4.4679,218.63,218.53,4.88]
[1737129626283,9.0408,218.63,218.56,4.5741]
[1737129626477,4.4679,218.63,218.53,4.88]
[1737129627081,9.0408,218.63,218.56,4.5741]
[1737129627481,4.4679,218.63,218.58,4.5736]
[1737129627678,4.4679,218.63,218.52,4.88]
[1737129628681,4.5723,218.66,218.59,4.5734]
[1737129628882,4.5723,218.66,218.52,4.88]
[1737129629083,13.76,218.73,218.52,4.88]
[1737129629281,4.572,218.67,218.52,4.88]
[1737129630182,4.5723,218.65,218.52,4.88]
[1737129630385,13.76,218.73,218.52,4.88]
[1737129630679,13.76,218.73,218.57,4.5738]
[1737129631279,4.5717,218.69,218.57,4.5738]
[1737129631478,13.76,218.68,218.57,4.5738]
[1737129631876,13.76,218.68,218.45,4.6158]
[1737129632075,13.76,218.68,218.52,4.5749]
[1737129632480,4.5731,218.62,218.55,4.5742]
[1737129632881,13.76,218.68,218.47,4.88]
[1737129633086,13.76,218.68,218.56,4.5741]
[1737129633288,13.76,218.68,218.47,4.88]
[1737129633686,13.76,218.7,218.47,4.88]
[1737129634187,4.5728,218.63,218.57,4.5738]
[1737129635385,4.5728,218.63,218.58,4.5738]
[1737129635785,13.76,218.71,218.47,4.88]
[1737129635988,4.5726,218.64,218.52,4.575]
[1737129636186,4.5726,218.64,218.47,4.88]
[1737129636391,4.5725,218.65,218.47,4.88]
[1737129636691,13.76,218.71,218.58,4.5736]
[1737129637585,13.76,218.71,218.59,4.5735]
[1737129637586,4.5725,218.65,218.59,4.5735]
[1737129640289,13.76,218.73,218.59,4.5735]
[1737129640489,4.5726,218.64,218.59,4.5735]
[1737129641295,13.76,218.73,218.47,4.88]
[1737129641595,4.5728,218.63,218.47,4.88]
[1737129641790,13.76,218.73,218.47,4.88]
[1737129642192,4.5723,218.65,218.59,4.5735]
[1737129642495,13.76,218.73,218.59,4.5735]
[1737129642693,13.76,218.73,218.47,4.88]
[1737129642894,4.5722,218.66,218.6,4.5733]
[1737129643091,4.5722,218.66,218.47,4.88]
[1737129643291,4.5722,218.66,218.6,4.5733]
[1737129643791,4.5719,218.68,218.62,4.5728]
[1737129643988,13.76,218.73,218.56,4.84]
[1737129645297,4.5714,218.7,218.66,4.5721]
[1737129645490,4.5714,218.7,218.56,4.84]
[1737129646197,13.76,218.73,218.56,4.84]
[1737129646904,20.54746559,218.73,218.56,4.84]
[1737129647092,4.5717,218.68,218.63,4.5726]
[1737129647400,4.5717,218.68,218.56,4.84]
[1737129647697,4.5717,218.68,218.59,4.5735]
[1737129647897,4.5717,218.68,218.56,4.84]
[1737129648098,13.76,218.68,218.56,4.84]
[1737129648411,13.76,218.68,218.61,4.573]
[1737129648610,13.76,218.68,218.56,4.84]
[1737129649006,13.76,218.72,218.56,4.84]
[1737129649511,4.5719,218.67,218.62,4.5728]
[1737129650509,4.5721,218.66,218.62,4.5728]
[1737129650700,13.76,218.73,218.49,9.1514]
[1737129650900,13.76,218.71,218.5,4.84]
[1737129651301,13.76,218.71,218.49,9.1514]
[1737129651607,13.76,218.71,218.5,4.84]
[1737129652007,4.5727,218.64,218.58,4.5736]
[1737129652206,13.76,218.7,218.58,4.5736]
[1737129652910,4.5728,218.63,218.58,4.5736]
[1737129653307,13.76,218.69,218.58,4.5736]
[1737129653509,13.76,218.65,218.57,4.574]
[1737129653709,18.4325,218.64,218.57,4.574]
[1737129654106,13.76,218.62,218.56,4.5742]
[1737129654413,13.76,218.62,218.47,4.82]
[1737129654815,4.5736,218.59,218.54,4.5746]
[1737129655110,13.76,218.62,218.47,4.82]
[1737129655302,13.76,218.63,218.47,4.82]
[1737129656106,4.5734,218.6,218.55,4.5743]
[1737129656309,13.76,218.63,218.47,4.82]
[1737129656714,4.574,218.58,218.52,4.5748]
[1737129657114,4.574,218.58,218.47,4.82]
[1737129657313,4.574,218.58,218.53,4.5748]
[1737129657811,13.76,218.63,218.45,4.6158]
[1737129658012,13.76,218.63,218.42,4.84]
[1737129658310,4.5746,218.55,218.5,4.5754]
[1737129659110,13.76,218.63,218.53,4.5748]
[1737129659615,4.574,218.58,218.53,4.5748]
[1737129660812,13.76,218.63,218.53,4.5748]
[1737129661007,4.5741,218.57,218.53,4.5748]
[1737129661208,4.5741,218.57,218.54,4.5745]
[1737129662912,4.5734,218.6,218.44,12.0558]
[1737129663118,4.5734,218.6,218.44,13.5285]
[1737129664013,4.5734,218.6,218.56,4.574]
[1737129664322,53.94763735,218.64,218.44,13.5285]
[1737129664323,53.94763735,218.64,218.44,4.3753]
[1737129664826,53.94763735,218.64,218.47,9.152]
[1737129665015,53.94763735,218.64,218.44,4.3753]
[1737129665420,53.94763735,218.64,218.54,13.25654587]
[1737129665621,53.94763735,218.64,218.54,18.07654587]
[1737129666622,53.94763735,218.64,218.61,4.5732]
[1737129667620,53.94763735,218.64,218.54,18.07654587]
[1737129667814,53.94763735,218.64,218.62,4.5728]
[1737129668423,53.94763735,218.64,218.6,4.5732]
[1737129668616,53.94763735,218.64,218.54,18.07654587]
[1737129670327,13.25654587,218.71,218.68,4.5717]
[1737129671128,17.82764587,218.71,218.68,4.5717]
[1737129671328,13.25654587,218.71,218.57,13.25654587]
[1737129671527,13.25654587,218.71,218.66,4.5719]
[1737129672329,4.5714,218.7,218.66,4.5719]
[1737129672524,13.25654587,218.71,218.66,4.5719]
[1737129672832,13.25654587,218.68,218.57,13.25654587]
[1737129673031,17.82824587,218.68,218.64,4.5724]
[1737129673224,17.82824587,218.68,218.57,13.25654587]
[1737129673928,17.82824587,218.68,218.6,4.5733]
[1737129674127,17.82824587,218.68,218.57,13.25654587]
[1737129674330,13.25654587,218.65,218.55,3.0326]
[1737129674629,13.25654587,218.65,218.61,4.573]
[1737129675130,13.25654587,218.65,218.55,3.0326]
[1737129676326,13.25654587,218.65,218.63,4.5726]
[1737129676524,13.25654587,218.65,218.55,3.0326]
[1737129676932,13.25654587,218.65,218.58,4.5738]
[1737129677131,13.25654587,218.65,218.55,3.0326]
[1737129677332,4.5721,218.67,218.55,3.0326]
[1737129678234,4.5721,218.67,218.63,4.5726]
[1737129680132,4.5721,218.66,218.63,4.5726]
[1737129681432,4.5725,218.65,218.61,4.573]
[1737129681634,13.25654587,218.68,218.61,4.573]
[1737129682026,4.5721,218.66,218.61,4.573]
[1737129682233,13.25654587,218.68,218.61,4.573]
[1737129682635,13.25654587,218.68,218.62,4.5728]
[1737129683733,13.25654587,218.68,218.65,4.5723]
[1737129684339,13.25654587,218.68,218.55,9.1489]
[1737129684639,20.05752732,218.71,218.57,13.25654587]
[1737129685034,13.25654587,218.71,218.57,13.25654587]
[1737129685339,17.82764587,218.71,218.68,4.5717]
[1737129685934,4.5709,218.72,218.69,4.5715]
[1737129686135,8.4804908,218.7,218.69,4.5715]
[1737129687634,4.5709,218.72,218.69,4.5715]
[1737129688436,13.24997997,218.73,218.71,4.571]
[1737129688631,13.24997997,218.73,218.6,13.24997997]
[1737129689739,4.5709,218.72,218.6,13.24997997]
[1737129690139,13.24997997,218.73,218.6,13.24997997]
[1737129690335,4.5446,218.74,218.63,13.24997997]
[1737129690534,235.00960657,218.77,218.66,13.24997997]
[1737129690735,235.00960657,218.77,218.69,13.24997997]
[1737129690944,235.00960657,218.77,218.76,4.57]
[1737129690945,188.02583612,218.77,218.76,4.57]
[1737129691541,17.81887997,218.82,218.77,4.5697]
[1737129691743,4.5689,218.82,218.77,4.5697]
[1737129691942,4.5689,218.82,218.7,13.24997997]
[1737129692141,188.02583612,218.87,218.73,13.24997997]
[1737129692352,188.02583612,218.87,218.7,13.24997997]
[1737129692353,188.02583612,218.87,218.76,13.24997997]
[1737129692747,188.02583612,218.87,218.79,13.24997997]
[1737129692943,51.51830205,218.91,218.79,13.24997997]
[1737129693250,51.51830205,218.91,218.77,2.9066]
[1737129693251,188.02583612,218.93,218.82,13.24997997]
[1737129693446,188.02583612,218.93,218.9,4.567]
[1737129693851,4.5657,218.97,218.9,4.567]
[1737129694241,4.5657,218.97,218.89,4.5671]
[1737129694446,13.24997997,218.98,218.89,4.5671]
[1737129694645,191.02173612,219.01,218.83,4.8]
[1737129694646,13.24997997,218.92,218.83,4.8]
[1737129694842,13.24997997,218.92,218.84,4.5683]
[1737129695248,17.81667997,218.92,218.84,4.5683]
[1737129697455,204.27171609,219.01,218.83,4.8]
[1737129697456,4.5664,218.94,218.83,4.8]
[1737129697650,13.24997997,218.95,218.87,4.5677]
[1737129698551,4.5667,218.92,218.87,4.5677]
[1737129699351,13.24997997,218.95,218.85,4.568]
[1737129699652,13.24997997,218.95,218.83,4.8]
[1737129699849,4.5671,218.9,218.84,4.5682]
[1737129700046,13.24997997,218.95,218.84,4.5682]
[1737129700250,2.9959,219.01,218.77,2.9066]
[1737129700251,13.24997997,218.89,218.77,2.9066]
[1737129700449,13.24997997,218.89,218.78,4.78]
[1737129700852,13.24997997,218.89,218.77,2.9066]
[1737129701855,13.24997997,218.89,218.8,4.5692]
[1737129702253,13.24997997,218.86,218.79,4.5694]
[1737129702455,13.24997997,218.86,218.73,4.82]
[1737129702653,13.24997997,218.83,218.73,4.82]
[1737129702846,13.24997997,218.8,218.69,1.4634]
[1737129703053,13.24997997,218.77,218.65,7.8817]
[1737129703253,13.24997997,218.77,218.65,6.3848]
[1737129703557,13.24997997,218.77,218.65,4.82]
[1737129704153,4.571,218.72,218.66,4.5721]
[1737129705455,13.24997997,218.77,218.66,4.5721]
[1737129705659,13.24997997,218.74,218.62,4.82]
[1737129706259,13.24997997,218.74,218.64,4.5725]
[1737129706558,13.24997997,218.74,218.62,4.82]
[1737129707053,4.5716,218.69,218.62,4.82]
[1737129707256,13.24997997,218.74,218.59,1.4479]
[1737129707464,4.5719,218.67,218.62,4.5729]
[1737129708052,13.24997997,218.71,218.62,4.5729]
[1737129708259,13.24997997,218.71,218.58,16.33937997]
[1737129708454,13.24997997,218.68,218.56,4.8]
[1737129708755,4.5726,218.64,218.59,4.5736]
[1737129709958,4.5719,218.68,218.62,4.5729]
[1737129710159,4.5719,218.68,218.58,13.24997997]
[1737129710459,13.24997997,218.74,218.61,13.24997997]
[1737129710659,4.5712,218.71,218.61,13.24997997]
[1737129711157,4.5712,218.71,218.64,4.5725]
[1737129711358,4.5712,218.71,218.61,13.24997997]
[1737129711765,4.5713,218.7,218.65,4.5722]
[1737129711951,13.24997997,218.74,218.61,13.24997997]
[1737129713156,4.5709,218.72,218.68,4.5717]
[1737129713854,13.24997997,218.77,218.64,13.24997997]
[1737129714058,1.5536,218.78,218.64,13.24997997]
[1737129714357,4.57,218.76,218.65,4.8]
[1737129714566,4.57,218.76,218.71,4.5709]
[1737129714961,1.5536,218.78,218.71,4.5709]
[1737129715265,13.24997997,218.74,218.65,4.8]
[1737129716560,4.5711,218.72,218.65,4.8]
[1737129717265,4.5711,218.72,218.68,4.5716]
[1737129717472,4.5711,218.72,218.65,4.8]
[1737129718369,4.5711,218.72,218.68,4.5715]
[1737129719568,13.24997997,218.74,218.65,9.3722]
[1737129719867,13.24997997,218.74,218.65,4.5722]
[1737129720262,13.24997997,218.71,218.63,4.5727]
[1737129720467,13.24997997,218.68,218.57,4.78]
[1737129720663,4.5724,218.65,218.55,18.02997997]
[1737129720867,13.24997997,218.68,218.62,4.5729]
[1737129721963,4.5723,218.66,218.62,4.5729]
[1737129722768,13.24997997,218.68,218.62,4.5729]
[1737129722966,4.5728,218.63,218.58,4.5737]
[1737129723270,4.5728,218.63,218.54,2.9952]
[1737129723569,4.5723,218.65,218.61,4.5731]
[1737129723763,13.24997997,218.68,218.56,13.24997997]
[1737129723958,13.24997997,218.71,218.59,13.24997997]
[1737129724160,4.5711,218.71,218.67,4.5718]
[1737129724366,4.5711,218.71,218.59,13.24997997]
[1737129724667,13.24997997,218.74,218.59,13.24997997]
[1737129724668,4.5715,218.7,218.66,4.5721]
[1737129724867,13.24997997,218.74,218.59,13.24997997]
[1737129725666,4.5713,218.7,218.66,4.572]
[1737129725966,4.5713,218.7,218.59,13.24997997]
[1737129726167,13.24997997,218.74,218.69,4.5715]
[1737129726367,13.24997997,218.74,218.62,13.24997997]
[1737129726760,4.5711,218.71,218.67,4.5717]
[1737129727167,13.24997997,218.77,218.65,13.24997997]
[1737129727871,4.5706,218.74,218.7,4.5713]
[1737129728061,13.24997997,218.77,218.65,13.24997997]
[1737129729060,4.5702,218.75,218.65,13.24997997]
[1737129729867,4.5705,218.74,218.65,13.24997997]
[1737129730370,13.24997997,218.77,218.71,4.571]
[1737129730572,4.5702,218.75,218.65,13.24997997]
[1737129730762,1.5536,218.78,218.65,13.24997997]
[1737129731366,4.5705,218.74,218.68,4.5715]
[1737129731562,4.5705,218.74,218.65,13.24997997]
[1737129731971,4.5705,218.74,218.7,4.5711]
[1737129732174,1.5536,218.78,218.65,13.24997997]
[1737129732368,13.24997997,218.74,218.65,4.5722]
[1737129732570,13.24997997,218.71,218.61,4.78]
[1737129733269,4.5713,218.7,218.66,4.5719]
[1737129733770,13.24997997,218.71,218.58,16.27067997]
[1737129733966,4.5717,218.68,218.64,4.5723]
[1737129734164,4.5717,218.68,218.59,4.78]
[1737129734365,4.5713,218.7,218.59,4.78]
[1737129734569,13.24997997,218.74,218.59,4.78]
[1737129735174,13.24997997,218.74,218.61,13.24997997]
[1737129735475,4.5712,218.71,218.67,4.5717]
[1737129735676,13.24997997,218.74,218.67,4.5717]
[1737129736375,13.24997997,218.71,218.59,4.78]
[1737129736576,4.5714,218.7,218.66,4.5721]
[1737129737071,4.5714,218.7,218.59,4.78]
[1737129737277,4.5714,218.7,218.67,4.5719]
[1737129738277,4.5709,218.72,218.69,4.5714]
[1737129738576,13.24997997,218.71,218.59,4.78]
[1737129739076,4.5715,218.7,218.66,4.572]
[1737129739372,13.24997997,218.68,218.58,6.2124]
[1737129739776,4.5721,218.67,218.58,6.2124]
[1737129739969,4.5721,218.67,218.58,1.4524]
[1737129740473,13.24997997,218.68,218.56,4.76]
[1737129742277,13.24997997,218.68,218.55,13.24997997]
[1737129742478,13.24997997,218.68,218.56,4.76]
[1737129742677,4.5719,218.67,218.56,4.76]
[1737129743073,4.5722,218.66,218.59,4.5735]
[1737129743382,4.5722,218.66,218.56,4.76]
[1737129743777,4.5722,218.66,218.62,4.5728]
[1737129744274,4.5722,218.66,218.56,4.76]
[1737129744674,13.24997997,218.68,218.55,13.24997997]
[1737129744979,13.24997997,218.64,218.53,2.9069]
[1737129745274,4.5734,218.61,218.57,4.5739]
[1737129745479,13.24997997,218.61,218.57,4.5739]
[1737129745881,4.5735,218.6,218.56,4.5741]
[1737129746275,4.5735,218.6,218.5,1.4582]
[1737129746476,13.24997997,218.58,218.43,41.38469181]
[1737129746678,13.24997997,218.58,218.44,4.76]
[1737129746978,4.5742,218.57,218.52,4.575]
[1737129747178,14.68697997,218.58,218.44,4.76]
[1737129747483,14.68697997,218.58,218.46,13.24997997]
[1737129747683,19.26077997,218.58,218.53,4.5747]
[1737129749984,13.24997997,218.55,218.4,13.24997997]
[1737129750180,13.24997997,218.52,218.37,16.27127997]
[1737129750386,13.24997997,218.57,218.41,4.5773]
[1737129750387,13.24997997,218.49,218.41,4.5773]
[1737129750577,13.24997997,218.46,218.31,4.76]
[1737129750784,13.24997997,218.43,218.3,16.27127997]
[1737129750980,4.5775,218.41,218.3,7.7813]
[1737129751179,13.24997997,218.43,218.3,7.7813]
[1737129751376,4.578,218.38,218.3,3.0213]
[1737129751587,13.24997997,218.4,218.27,4.76]
[1737129751887,13.24997997,218.4,218.34,4.5788]
[1737129752082,13.24997997,218.4,218.27,4.76]
[1737129752283,13.24997997,218.37,218.26,1.4647]
[1737129752486,13.24997997,218.37,218.25,4.76]
[1737129753182,13.24997997,218.37,218.3,4.5796]
[1737129753384,13.24997997,218.37,218.25,4.76]
[1737129753584,4.5781,218.38,218.31,4.5794]
[1737129753986,4.5781,218.38,218.25,4.76]
[1737129754180,4.5781,218.38,218.28,4.5799]
[1737129754386,21.27024394,218.4,218.25,4.76]
[1737129754587,25.84794394,218.4,218.25,4.76]
[1737129754982,21.27024394,218.4,218.25,26.03024394]
[1737129755188,25.84714394,218.44,218.25,26.03024394]
[1737129755388,21.27024394,218.44,218.25,26.03024394]
[1737129755693,4.5769,218.43,218.25,26.03024394]
[1737129756190,21.27024394,218.44,218.25,26.03024394]
[1737129756889,6.1236,218.47,218.41,4.5773]
[1737129757190,6.1236,218.47,218.29,21.27024394]
[1737129757382,1.5473,218.47,218.3,1.5341]
[1737129757582,1.5473,218.47,218.33,21.27024394]
[1737129757785,1.5473,218.47,218.34,4.76]
[1737129757984,1.5473,218.47,218.44,4.5767]
[1737129758788,1.5473,218.47,218.42,4.5769]
[1737129759489,1.5473,218.47,218.34,7.859]
[1737129759891,4.5778,218.39,218.34,9.3386]
[1737129760092,21.27024394,218.4,218.25,3.099]
[1737129760291,21.27024394,218.4,218.26,4.76]
[1737129760791,4.5782,218.38,218.34,4.5788]
[1737129761392,4.5778,218.39,218.26,4.76]
[1737129761789,21.27024394,218.44,218.26,4.76]
[1737129761993,4.5775,218.41,218.31,4.5794]
[1737129762193,21.27024394,218.44,218.26,4.76]
[1737129762893,4.5776,218.4,218.36,4.5783]
[1737129763091,21.27024394,218.44,218.26,4.76]
[1737129763490,4.577,218.43,218.31,4.5794]
[1737129763696,4.577,218.43,218.26,4.76]
[1737129763891,21.27024394,218.44,218.26,4.76]
[1737129764093,4.5776,218.4,218.36,4.5782]
[1737129764290,21.27024394,218.44,218.26,4.76]
[1737129764491,4.5776,218.4,218.31,4.5794]
[1737129764693,4.5776,218.4,218.26,4.76]
[1737129765298,4.5774,218.41,218.26,4.76]
[1737129766297,21.27024394,218.44,218.36,4.5783]
[1737129766488,4.5776,218.4,218.36,4.5783]
[1737129766892,21.27024394,218.44,218.36,4.5783]
[1737129767091,21.27024394,218.44,218.26,4.76]
[1737129767288,21.27024394,218.38,218.21,1.4531]
[1737129767497,4.5543,218.37,218.24,4.74]
[1737129767696,4.5543,218.37,218.35,4.5786]
[1737129768099,4.5543,218.37,218.24,26.01024394]
[1737129768299,4.5543,218.37,218.24,4.74]
[1737129768992,4.5543,218.37,218.24,26.01024394]
[1737129769500,4.5543,218.37,218.34,4.5786]
[1737129769895,4.5543,218.37,218.24,26.01024394]
[1737129770096,4.5543,218.37,218.35,4.5786]
[1737129770293,4.5543,218.37,218.24,26.01024394]
[1737129771196,3.0427,218.37,218.24,26.01024394]
[1737129771401,1.5656,218.42,218.24,26.01024394]
[1737129771600,4.5564,218.42,218.24,26.01024394]
[1737129771800,4.5564,218.42,218.24,4.74]
[1737129771997,4.5791,218.33,218.29,4.5798]
[1737129772500,4.5788,218.34,218.3,4.5795]
[1737129773000,4.5792,218.32,218.29,4.5799]
[1737129773199,21.27024394,218.32,218.18,7.713]
[1737129773598,4.5797,218.3,218.18,7.713]
[1737129773801,21.27024394,218.32,218.18,7.713]
[1737129774699,4.5795,218.31,218.27,4.5802]
[1737129775095,21.27024394,218.32,218.18,2.973]
[1737129775297,21.27024394,218.28,218.12,21.27024394]
[1737129775502,21.27024394,218.28,218.12,4.74]
[1737129775699,3.1155,218.27,218.12,4.74]
[1737129775904,4.5812,218.23,218.12,4.74]
[1737129776198,3.1155,218.27,218.12,4.74]
[1737129776408,4.5814,218.22,218.17,4.5823]
[1737129776601,21.27024394,218.24,218.12,4.74]
[1737129776904,21.27024394,218.24,218.16,4.5826]
[1737129776905,4.5818,218.2,218.16,4.5826]
[1737129777096,21.27024394,218.24,218.1,4.74]
[1737129777702,21.27024394,218.2,218.1,4.74]
[1737129777904,21.27024394,218.2,218.06,9.1447]
[1737129778105,21.27024394,218.2,218.06,4.4047]
[1737129778408,4.5823,218.18,218.06,2.9272]
[1737129778603,21.27024394,218.2,218.06,2.9272]
[1737129778799,4.5832,218.13,218.09,4.584]
[1737129778999,21.27024394,218.16,217.98,4.5352]
[1737129779307,21.27024394,218.16,218.01,21.27024394]